[Event "44th Chess Olympiad Open 2022"]
[Site "Chennai"]
[Date "2022.07.31"]
[Round "3.40"]
[White "Kanyamarala, Tarun"]
[Black "Gole, Habtamu Ashenafi"]
[Result "1-0"]
[WhiteElo "2379"]
[BlackElo "2044"]
[Annotator "RC"]
[PlyCount "71"]
[EventDate "2022.??.??"]
[TimeControl "60"]

1. d4 {[%emt 0:00:06]} Nf6 {[%emt 0:00:09]} 2. c4 {[%emt 0:00:12]} e6 {[%emt 0:
00:00]} 3. Nc3 {[%emt 0:00:14]} d5 {[%emt 0:00:11]} 4. cxd5 {[%emt 0:00:52]}
exd5 {[%emt 0:00:10]} 5. Bg5 {[%emt 0:00:11]} Nbd7 {[%emt 0:00:41]} 6. e3 {
[%emt 0:00:30]} c6 {[%emt 0:01:09]} 7. Bd3 {[%emt 0:00:18]} Be7 {[%emt 0:00:54]
} 8. h3 {[%emt 0:02:46]} O-O {[%emt 0:00:10]} 9. Qc2 {[%emt 0:00:22]} h6 {
[%emt 0:00:57]} 10. Bf4 {[%emt 0:00:17]} a6 {[%emt 0:02:56]} 11. Nf3 {[%emt 0:
00:00]} c5 {[%emt 0:00:17]} 12. O-O {[%emt 0:11:03]} b5 {[%emt 0:04:49]} 13. a3
{[%emt 0:12:45]} Bb7 {[%emt 0:01:27]} 14. dxc5 {[%emt 0:07:41]} Nxc5 {[%emt 0:
00:00]} 15. Bf5 {[%emt 0:00:49]} Bd6 {[%emt 0:11:12]} 16. Bxd6 {[%emt 0:01:13]}
Qxd6 {[%emt 0:00:02]} 17. Rfd1 {[%emt 0:02:13]} Qe7 {[%emt 0:02:03]} 18. Rac1 {
[%emt 0:07:18]} g6 {[%emt 0:02:20]} 19. Bd3 {[%emt 0:07:32]} Rac8 {[%emt 0:00:
00]} 20. Be2 {[%emt 0:06:04]} Nfe4 {[%emt 0:06:06]} 21. Nxd5 {[%emt 0:12:41]}
Bxd5 {[%emt 0:08:49]} 22. Rxd5 {[%emt 0:00:09]} Nb3 {[%emt 0:00:42]} 23. Qxc8 {
[%emt 0:00:18]} Rxc8 {[%emt 0:00:14]} 24. Rxc8+ {[%emt 0:00:09]} Kg7 {[%emt 0:
00:00]} 25. Rdd8 {[%emt 0:02:33]} Nf6 {[%emt 0:02:41]} 26. Ra8 {[%emt 0:04:26]}
Nc5 {[%emt 0:10:02]} 27. Rdc8 {[%emt 0:04:50]} Qb7 {[%emt 0:16:16]} 28. Nd4 {
[%emt 0:02:26]} Na4 {[%emt 0:08:22]} 29. Bf3 {[%emt 0:04:08]} Qe7 {[%emt 0:00:
00]} 30. Rxa6 {[%emt 0:03:23]} Nxb2 {[%emt 0:00:26]} 31. Rb8 {[%emt 0:01:15]}
Qc5 {[%emt 0:09:28]} 32. Rb7 {[%emt 0:01:30]} Qc1+ {[%emt 0:00:12]} 33. Kh2 {
[%emt 0:00:11]} g5 {[%emt 0:02:25]} 34. Bh5 {[%emt 0:03:54]} Ng8 {[%emt 0:00:
00]} 35. Rxf7+ {[%emt 0:00:31]} Kh8 {[%emt 0:00:03]} 36. Bg6 {[%emt 0:00:54]}
1-0

[Event "44th Chess Olympiad Open 2022"]
[Site "Chennai"]
[Date "2022.07.31"]
[Round "3.40"]
[White "Abera, Aydagnuhem Gezachew"]
[Black "O`Gorman, Tom"]
[Result "0-1"]
[WhiteElo "2137"]
[BlackElo "2401"]
[Annotator "RC"]
[PlyCount "86"]
[EventDate "2022.??.??"]
[TimeControl "60"]

1. e4 {[%emt 0:00:11]} c5 {[%emt 0:00:22]} 2. Nf3 {[%emt 0:00:12]} d6 {[%emt 0:
00:00]} 3. d4 {[%emt 0:00:56]} cxd4 {[%emt 0:00:06]} 4. Nxd4 {[%emt 0:00:05]}
Nf6 {[%emt 0:00:06]} 5. Nc3 {[%emt 0:00:07]} a6 {[%emt 0:00:05]} 6. Be3 {
[%emt 0:00:30]} e5 {[%emt 0:01:01]} 7. Nb3 {[%emt 0:00:24]} Be6 {[%emt 0:00:07]
} 8. f3 {[%emt 0:00:50]} Be7 {[%emt 0:00:05]} 9. Bd3 {[%emt 0:00:47]} O-O {
[%emt 0:01:02]} 10. Qe2 {[%emt 0:01:36]} b5 {[%emt 0:04:01]} 11. O-O {[%emt 0:
00:00]} Nbd7 {[%emt 0:03:11]} 12. Qf2 {[%emt 0:01:27]} Qc7 {[%emt 0:08:04]} 13.
h3 {[%emt 0:03:58]} b4 {[%emt 0:02:32]} 14. Ne2 {[%emt 0:03:07]} d5 {[%emt 0:
00:00]} 15. Ng3 {[%emt 0:04:43]} a5 {[%emt 0:01:41]} 16. Rad1 {[%emt 0:08:22]}
a4 {[%emt 0:01:26]} 17. Nc1 {[%emt 0:02:42]} Nc5 {[%emt 0:03:44]} 18. exd5 {
[%emt 0:09:14]} Nxd5 {[%emt 0:01:19]} 19. Nf5 {[%emt 0:05:49]} Bxf5 {[%emt 0:
00:00]} 20. Bxf5 {[%emt 0:00:59]} Nxe3 {[%emt 0:00:07]} 21. Qxe3 {[%emt 0:00:
00]} a3 {[%emt 0:08:51]} 22. b3 {[%emt 0:03:43]} g6 {[%emt 0:06:35]} 23. Bd3 {
[%emt 0:03:42]} Na4 {[%emt 0:00:50]} 24. Kh1 {[%emt 0:03:07]} Nc3 {[%emt 0:00:
00]} 25. Rde1 {[%emt 0:00:42]} Ra5 {[%emt 0:04:09]} 26. g3 {[%emt 0:16:17]} e4
{[%emt 0:03:28]} 27. fxe4 {[%emt 0:02:58]} Bg5 {[%emt 0:00:13]} 28. Qf3 {
[%emt 0:00:50]} Bxc1 {[%emt 0:03:28]} 29. Rxc1 {[%emt 0:00:48]} Nxa2 {[%emt 0:
00:00]} 30. Rce1 {[%emt 0:02:26]} Qe5 {[%emt 0:01:09]} 31. Bc4 {[%emt 0:01:29]}
Ra7 {[%emt 0:02:02]} 32. Qg4 {[%emt 0:07:54]} Nc3 {[%emt 0:02:11]} 33. Rf5 {
[%emt 0:03:00]} Qd4 {[%emt 0:00:52]} 34. h4 {[%emt 0:04:30]} a2 {[%emt 0:04:04]
} 35. Rff1 {[%emt 0:02:58]} Re7 {[%emt 0:04:14]} 36. h5 {[%emt 0:03:29]} Rxe4 {
[%emt 0:01:32]} 37. Rxe4 {[%emt 0:02:06]} Nxe4 {[%emt 0:01:29]} 38. Kg2 {
[%emt 0:00:56]} Qd2+ {[%emt 0:02:33]} 39. Kg1 {[%emt 0:01:05]} a1=Q {[%emt 0:
00:00]} 40. Rxa1 {[%emt 0:00:31]} Qf2+ {[%emt 0:00:08]} 41. Kh1 {[%emt 0:30:03]
} Nxg3+ {[%emt 0:30:11]} 42. Qxg3 {[%emt 0:00:08]} Qxg3 {[%emt 0:00:06]} 43.
hxg6 {[%emt 0:00:14]} hxg6 {[%emt 0:00:06]} 0-1

[Event "44th Chess Olympiad Open 2022"]
[Site "Chennai"]
[Date "2022.07.31"]
[Round "3.40"]
[White "Badene, Habtamu Bayu"]
[Black "Heidenfeld, Mark"]
[Result "0-1"]
[WhiteElo "2011"]
[BlackElo "2355"]
[Annotator "RC"]
[PlyCount "112"]
[EventDate "2022.??.??"]
[TimeControl "60"]

1. e4 {[%emt 0:00:05]} e5 {[%emt 0:00:18]} 2. Nf3 {[%emt 0:00:09]} Nc6 {
[%emt 0:00:16]} 3. Bb5 {[%emt 0:00:15]} a6 {[%emt 0:00:54]} 4. Ba4 {[%emt 0:00:
00]} Nf6 {[%emt 0:00:33]} 5. O-O {[%emt 0:02:53]} Be7 {[%emt 0:02:07]} 6. Re1 {
[%emt 0:00:47]} b5 {[%emt 0:02:04]} 7. Bb3 {[%emt 0:00:30]} O-O {[%emt 0:00:23]
} 8. c3 {[%emt 0:00:45]} d6 {[%emt 0:03:34]} 9. h3 {[%emt 0:00:57]} Na5 {
[%emt 0:01:19]} 10. Bc2 {[%emt 0:01:11]} c5 {[%emt 0:00:35]} 11. a4 {[%emt 0:
00:00]} Bd7 {[%emt 0:14:01]} 12. d3 {[%emt 0:05:32]} Qc7 {[%emt 0:09:09]} 13.
Nbd2 {[%emt 0:04:44]} c4 {[%emt 0:10:10]} 14. d4 {[%emt 0:01:38]} Rfb8 {
[%emt 0:01:15]} 15. Nf1 {[%emt 0:03:47]} b4 {[%emt 0:03:21]} 16. cxb4 {[%emt 0:
00:00]} Nc6 {[%emt 0:03:53]} 17. d5 {[%emt 0:07:49]} Nxb4 {[%emt 0:03:10]} 18.
Bd2 {[%emt 0:00:42]} a5 {[%emt 0:10:36]} 19. Ng3 {[%emt 0:04:57]} g6 {[%emt 0:
00:00]} 20. Bc3 {[%emt 0:06:49]} Bc8 {[%emt 0:01:56]} 21. Qd2 {[%emt 0:06:44]}
Nd7 {[%emt 0:02:39]} 22. Ra3 {[%emt 0:12:45]} Nc5 {[%emt 0:01:27]} 23. Rd1 {
[%emt 0:00:37]} Bd7 {[%emt 0:04:40]} 24. Ne1 {[%emt 0:05:19]} Qd8 {[%emt 0:00:
00]} 25. f4 {[%emt 0:04:42]} f6 {[%emt 0:05:42]} 26. Ne2 {[%emt 0:05:13]} Nxc2
{[%emt 0:02:49]} 27. Qxc2 {[%emt 0:01:10]} Qe8 {[%emt 0:00:14]} 28. Rda1 {
[%emt 0:01:41]} Rb3 {[%emt 0:00:47]} 29. Nc1 {[%emt 0:02:23]} Rxa3 {[%emt 0:00:
00]} 30. Rxa3 {[%emt 0:00:07]} Bxa4 {[%emt 0:00:36]} 31. Qe2 {[%emt 0:01:09]}
Qb5 {[%emt 0:01:03]} 32. Qf3 {[%emt 0:01:12]} Bb3 {[%emt 0:01:31]} 33. f5 {
[%emt 0:00:49]} Na4 {[%emt 0:02:06]} 34. Nxb3 {[%emt 0:03:40]} cxb3 {[%emt 0:
00:00]} 35. Bd2 {[%emt 0:00:55]} Nc5 {[%emt 0:02:11]} 36. fxg6 {[%emt 0:01:01]}
hxg6 {[%emt 0:00:08]} 37. Kh2 {[%emt 0:01:55]} Qc4 {[%emt 0:02:43]} 38. Be3 {
[%emt 0:02:31]} Qxe4 {[%emt 0:03:01]} 39. Bxc5 {[%emt 0:00:09]} Qxf3 {[%emt 0:
00:00]} 40. Nxf3 {[%emt 0:00:03]} dxc5 {[%emt 0:00:05]} 41. Rxb3 {[%emt 0:00:
00]} Rd8 {[%emt 0:31:02]} 42. Nh4 {[%emt 0:00:21]} Kf7 {[%emt 0:01:43]} 43. Rb7
{[%emt 0:01:07]} Rxd5 {[%emt 0:00:33]} 44. Nxg6 {[%emt 0:00:11]} Kxg6 {[%emt 0:
00:00]} 45. Rxe7 {[%emt 0:00:06]} Rd2 {[%emt 0:00:00]} 46. Rc7 {[%emt 0:00:00]}
Rc2 {[%emt 0:00:00]} 47. Kg3 {[%emt 0:00:00]} Kf5 {[%emt 0:00:00]} 48. Kf3 {
[%emt 0:00:00]} Rxb2 {[%emt 0:00:00]} 49. Rxc5 {[%emt 0:00:00]} a4 {[%emt 0:00:
00]} 50. Rc4 {[%emt 0:00:00]} e4+ {[%emt 0:00:00]} 51. Ke3 {[%emt 0:00:00]}
Rb3+ {[%emt 0:00:00]} 52. Ke2 {[%emt 0:00:00]} a3 {[%emt 0:00:00]} 53. Ra4 {
[%emt 0:00:00]} Kf4 {[%emt 0:00:00]} 54. Kd2 {[%emt 0:00:00]} Rg3 {[%emt 0:00:
00]} 55. Ke1 {[%emt 0:00:00]} Rxg2 {[%emt 0:00:00]} 56. Rxa3 {[%emt 0:00:00]}
Rg3 {[%emt 0:00:00]} 0-1

[Event "44th Chess Olympiad Open 2022"]
[Site "Chennai"]
[Date "2022.07.31"]
[Round "3.41"]
[White "Nielsen, Hogni Egilstoft"]
[Black "Fellman, Mike"]
[Result "1/2-1/2"]
[WhiteElo "2414"]
[BlackElo "2107"]
[Annotator "RC"]
[PlyCount "85"]
[EventDate "2022.??.??"]
[TimeControl "60"]

1. e4 {[%emt 0:00:04]} c5 {[%emt 0:00:03]} 2. Nf3 {[%emt 0:00:33]} d6 {[%emt 0:
00:00]} 3. Bb5+ {[%emt 0:00:46]} Bd7 {[%emt 0:00:06]} 4. Bxd7+ {[%emt 0:00:15]}
Qxd7 {[%emt 0:00:07]} 5. c4 {[%emt 0:00:20]} Nc6 {[%emt 0:00:20]} 6. d4 {
[%emt 0:00:41]} cxd4 {[%emt 0:00:09]} 7. Nxd4 {[%emt 0:00:09]} Nf6 {[%emt 0:00:
00]} 8. Nc3 {[%emt 0:00:33]} g6 {[%emt 0:00:11]} 9. f3 {[%emt 0:00:59]} Bg7 {
[%emt 0:00:08]} 10. Be3 {[%emt 0:00:24]} O-O {[%emt 0:00:35]} 11. O-O {[%emt 0:
00:00]} e6 {[%emt 0:00:38]} 12. Qd2 {[%emt 0:00:53]} Rfd8 {[%emt 0:03:15]} 13.
Rac1 {[%emt 0:18:39]} a6 {[%emt 0:07:19]} 14. Rfd1 {[%emt 0:12:34]} Nxd4 {
[%emt 0:14:45]} 15. Bxd4 {[%emt 0:00:21]} b5 {[%emt 0:04:49]} 16. cxb5 {
[%emt 0:09:57]} axb5 {[%emt 0:00:38]} 17. b3 {[%emt 0:00:33]} Qb7 {[%emt 0:00:
00]} 18. Qe2 {[%emt 0:13:09]} b4 {[%emt 0:19:33]} 19. Na4 {[%emt 0:01:07]} Ne8
{[%emt 0:07:20]} 20. Bxg7 {[%emt 0:08:09]} Kxg7 {[%emt 0:00:17]} 21. Rc4 {
[%emt 0:01:06]} Rdc8 {[%emt 0:02:10]} 22. Rdc1 {[%emt 0:04:33]} Rxc4 {[%emt 0:
00:00]} 23. Qxc4 {[%emt 0:00:14]} h5 {[%emt 0:02:22]} 24. Rc2 {[%emt 0:04:31]}
Kf8 {[%emt 0:01:14]} 25. Kf1 {[%emt 0:04:09]} Ke7 {[%emt 0:00:40]} 26. Ke2 {
[%emt 0:01:55]} Ra5 {[%emt 0:03:17]} 27. Qd4 {[%emt 0:04:07]} Nc7 {[%emt 0:00:
00]} 28. Kf2 {[%emt 0:02:35]} e5 {[%emt 0:02:12]} 29. Qb6 {[%emt 0:01:51]}
Qxb6+ {[%emt 0:01:53]} 30. Nxb6 {[%emt 0:00:02]} Rc5 {[%emt 0:00:24]} 31. Rxc5
{[%emt 0:04:13]} dxc5 {[%emt 0:00:07]} 32. Ke3 {[%emt 0:00:58]} Kd6 {[%emt 0:
00:00]} 33. Nc4+ {[%emt 0:00:28]} Ke6 {[%emt 0:00:07]} 34. Kd3 {[%emt 0:00:12]}
Nb5 {[%emt 0:01:11]} 35. Ne3 {[%emt 0:01:21]} Nd6 {[%emt 0:02:54]} 36. Nc4 {
[%emt 0:00:48]} Nb5 {[%emt 0:00:21]} 37. Nb6 {[%emt 0:00:22]} Na3 {[%emt 0:00:
00]} 38. Nd5 {[%emt 0:00:44]} Kd6 {[%emt 0:01:39]} 39. h4 {[%emt 0:00:05]} Ke6
{[%emt 0:00:23]} 40. Ne3 {[%emt 0:00:52]} f5 {[%emt 0:01:19]} 41. Nd5 {[%emt 0:
00:00]} f4 {[%emt 0:01:48]} 42. Nb6 {[%emt 0:02:15]} Kd6 {[%emt 0:01:36]} 43.
Nc8+ {[%emt 0:06:49]} 1/2-1/2

[Event "44th Chess Olympiad Open 2022"]
[Site "Chennai"]
[Date "2022.07.31"]
[Round "3.41"]
[White "Apol, Luitjen Akselsson"]
[Black "Pinales Roussel, Gabriel"]
[Result "1-0"]
[WhiteElo "2289"]
[BlackElo "1973"]
[Annotator "RC"]
[PlyCount "47"]
[EventDate "2022.??.??"]
[TimeControl "60"]

1. e4 {[%emt 0:00:15]} g6 {[%emt 0:00:04]} 2. d4 {[%emt 0:00:16]} Bg7 {[%emt 0:
00:00]} 3. Nf3 {[%emt 0:00:54]} d6 {[%emt 0:00:12]} 4. Bc4 {[%emt 0:00:39]} Nf6
{[%emt 0:00:34]} 5. Qe2 {[%emt 0:00:41]} O-O {[%emt 0:01:43]} 6. e5 {[%emt 0:
00:00]} dxe5 {[%emt 0:00:45]} 7. dxe5 {[%emt 0:00:17]} Nd5 {[%emt 0:00:09]} 8.
O-O {[%emt 0:01:19]} Bg4 {[%emt 0:02:40]} 9. Nbd2 {[%emt 0:02:24]} Nb6 {
[%emt 0:08:05]} 10. h3 {[%emt 0:01:52]} Bxf3 {[%emt 0:04:06]} 11. Nxf3 {
[%emt 0:00:20]} Nc6 {[%emt 0:09:04]} 12. e6 {[%emt 0:12:52]} f5 {[%emt 0:11:21]
} 13. Rd1 {[%emt 0:16:37]} Qe8 {[%emt 0:00:48]} 14. Bf4 {[%emt 0:04:56]} Nxc4 {
[%emt 0:08:12]} 15. Qxc4 {[%emt 0:00:44]} h6 {[%emt 0:08:00]} 16. h4 {[%emt 0:
00:00]} Bxb2 {[%emt 0:08:01]} 17. Rab1 {[%emt 0:02:08]} Bg7 {[%emt 0:00:06]}
18. Rd7 {[%emt 0:02:42]} Kh7 {[%emt 0:03:21]} 19. Rxb7 {[%emt 0:08:11]} Na5 {
[%emt 0:03:35]} 20. Qxc7 {[%emt 0:00:10]} Nxb7 {[%emt 0:00:05]} 21. Rxe7 {
[%emt 0:00:23]} Qxe7 {[%emt 0:00:55]} 22. Qxe7 {[%emt 0:00:06]} Nd8 {[%emt 0:
00:00]} 23. Be5 {[%emt 0:08:08]} Rg8 {[%emt 0:00:09]} 24. Qd7 {[%emt 0:00:19]}
1-0

[Event "44th Chess Olympiad Open 2022"]
[Site "Chennai"]
[Date "2022.07.31"]
[Round "3.41"]
[White "Zilleruelo Irizarry, Diego"]
[Black "Egilstoft, Rogvi"]
[Result "1/2-1/2"]
[WhiteElo "2081"]
[BlackElo "2284"]
[Annotator "RC"]
[PlyCount "55"]
[EventDate "2022.??.??"]
[TimeControl "60"]

1. e4 {[%emt 0:00:03]} d5 {[%emt 0:00:22]} 2. exd5 {[%emt 0:00:05]} Nf6 {
[%emt 0:00:24]} 3. Bb5+ {[%emt 0:00:57]} Bd7 {[%emt 0:00:30]} 4. Bxd7+ {
[%emt 0:02:03]} Qxd7 {[%emt 0:01:13]} 5. Nf3 {[%emt 0:02:53]} Qxd5 {[%emt 0:00:
00]} 6. O-O {[%emt 0:01:34]} c6 {[%emt 0:03:37]} 7. Re1 {[%emt 0:09:07]} Nbd7 {
[%emt 0:02:24]} 8. Qe2 {[%emt 0:00:31]} e6 {[%emt 0:02:22]} 9. c4 {[%emt 0:00:
00]} Qh5 {[%emt 0:02:40]} 10. d4 {[%emt 0:00:00]} Bd6 {[%emt 0:11:39]} 11. Nc3
{[%emt 0:01:34]} O-O {[%emt 0:01:30]} 12. Ne4 {[%emt 0:04:22]} Nxe4 {[%emt 0:
00:00]} 13. Qxe4 {[%emt 0:02:30]} Nf6 {[%emt 0:02:10]} 14. Qc2 {[%emt 0:00:16]}
Rad8 {[%emt 0:05:29]} 15. h3 {[%emt 0:02:21]} a6 {[%emt 0:07:06]} 16. Bd2 {
[%emt 0:04:44]} Bb8 {[%emt 0:05:35]} 17. a3 {[%emt 0:12:00]} Rd7 {[%emt 0:00:
00]} 18. Rad1 {[%emt 0:03:04]} Rfd8 {[%emt 0:06:25]} 19. b4 {[%emt 0:04:42]}
Qg6 {[%emt 0:08:00]} 20. Qc1 {[%emt 0:05:44]} h6 {[%emt 0:12:43]} 21. Be3 {
[%emt 0:04:14]} Qf5 {[%emt 0:02:44]} 22. a4 {[%emt 0:10:54]} Nh7 {[%emt 0:00:
00]} 23. Qb1 {[%emt 0:03:30]} Qf6 {[%emt 0:03:26]} 24. b5 {[%emt 0:02:48]} axb5
{[%emt 0:00:46]} 25. axb5 {[%emt 0:00:17]} cxb5 {[%emt 0:01:13]} 26. Qb3 {
[%emt 0:00:10]} b4 27. Qxb4 {[%emt 0:00:30]} Nf8 {[%emt 0:03:17]} 28. Qb5 {
[%emt 0:02:28]} 1/2-1/2

[Event "44th Chess Olympiad Open 2022"]
[Site "Chennai"]
[Date "2022.07.31"]
[Round "3.41"]
[White "Rodriguez Santiago, Jaime"]
[Black "Ziska, Helgi Dam"]
[Result "0-1"]
[WhiteElo "2067"]
[BlackElo "2549"]
[Annotator "ChessBase"]
[PlyCount "64"]
[EventDate "2022.??.??"]
[TimeControl "60"]

1. c4 {[%emt 0:00:03]} g6 {[%emt 0:00:07]} 2. Nc3 {[%emt 0:00:05]} Bg7 {
[%emt 0:00:11]} 3. g3 {[%emt 0:00:09]} d6 {[%emt 0:00:09]} 4. Bg2 {[%emt 0:00:
00]} e5 {[%emt 0:00:47]} 5. e4 {[%emt 0:00:14]} Nc6 {[%emt 0:00:08]} 6. Nge2 {
[%emt 0:00:04]} f5 {[%emt 0:00:29]} 7. d3 {[%emt 0:00:11]} Nf6 {[%emt 0:00:07]}
8. O-O {[%emt 0:01:30]} O-O {[%emt 0:00:08]} 9. h3 {[%emt 0:02:24]} f4 {
[%emt 0:01:37]} 10. gxf4 {[%emt 0:01:42]} Nh5 {[%emt 0:00:09]} 11. f5 {[%emt 0:
00:00]} gxf5 {[%emt 0:13:52]} 12. exf5 {[%emt 0:05:28]} Bxf5 {[%emt 0:11:07]}
13. Ng3 {[%emt 0:01:00]} Nf4 {[%emt 0:01:39]} 14. Bxf4 {[%emt 0:07:45]} exf4 {
[%emt 0:00:07]} 15. Nxf5 {[%emt 0:00:04]} Rxf5 {[%emt 0:00:11]} 16. Kh1 {
[%emt 0:05:23]} Kh8 {[%emt 0:15:55]} 17. Qg4 {[%emt 0:03:56]} Nd4 {[%emt 0:00:
00]} 18. Rg1 {[%emt 0:03:30]} f3 {[%emt 0:09:13]} 19. Bxf3 {[%emt 0:04:54]} Be5
{[%emt 0:00:07]} 20. Bg2 {[%emt 0:03:51]} Rf4 {[%emt 0:02:10]} 21. Qh5 {
[%emt 0:07:24]} Rh4 {[%emt 0:03:03]} 22. Qf7 {[%emt 0:01:06]} Rf4 {[%emt 0:00:
00]} 23. Qh5 {[%emt 0:00:29]} Rh4 {[%emt 0:00:05]} 24. Qf7 {[%emt 0:00:07]} Qc8
{[%emt 0:01:26]} 25. Rge1 {[%emt 0:01:47]} Rxh3+ {[%emt 0:00:10]} 26. Kg1 {
[%emt 0:00:02]} Qg8 {[%emt 0:07:32]} 27. Qxc7 {[%emt 0:07:15]} Rh2 {[%emt 0:00:
00]} 28. Qxb7 {[%emt 0:00:30]} Rf8 {[%emt 0:01:14]} 29. f4 {[%emt 0:07:51]} Qg3
{[%emt 0:03:08]} 30. Rxe5 {[%emt 0:08:19]} dxe5 {[%emt 0:01:33]} 31. Qe4 {
[%emt 0:00:17]} Rh5 {[%emt 0:01:06]} 32. Rf1 {[%emt 0:01:45]} Qh2+ {[%emt 0:00:
00]} 0-1

[Event "44th Chess Olympiad Open 2022"]
[Site "Chennai"]
[Date "2022.07.31"]
[Round "3.42"]
[White "Stanojoski, Zvonko"]
[Black "Alahakoon, Isuru"]
[Result "1-0"]
[WhiteElo "2412"]
[BlackElo "2000"]
[Annotator "RC"]
[PlyCount "119"]
[EventDate "2022.??.??"]
[TimeControl "60"]

1. e4 {[%emt 0:00:47]} c5 {[%emt 0:00:39]} 2. Nf3 {[%emt 0:00:18]} Nc6 {
[%emt 0:00:17]} 3. Bb5 {[%emt 0:00:40]} d6 {[%emt 0:02:12]} 4. c3 {[%emt 0:00:
00]} Nf6 {[%emt 0:01:50]} 5. Bxc6+ {[%emt 0:02:01]} bxc6 {[%emt 0:00:21]} 6.
Qa4 {[%emt 0:00:22]} Qb6 {[%emt 0:12:43]} 7. e5 {[%emt 0:04:46]} dxe5 {[%emt 0:
00:00]} 8. Nxe5 {[%emt 0:00:34]} Qb5 {[%emt 0:02:48]} 9. Qf4 {[%emt 0:02:26]}
e6 {[%emt 0:19:21]} 10. Na3 {[%emt 0:00:26]} Qb8 {[%emt 0:02:42]} 11. Nac4 {
[%emt 0:04:10]} Ba6 {[%emt 0:05:10]} 12. Qf3 {[%emt 0:00:38]} Qc7 {[%emt 0:00:
00]} 13. d3 {[%emt 0:01:32]} Rd8 {[%emt 0:11:22]} 14. Bf4 {[%emt 0:05:05]} Bxc4
{[%emt 0:03:41]} 15. Nxc4 {[%emt 0:01:12]} Qd7 {[%emt 0:00:24]} 16. O-O-O {
[%emt 0:06:39]} Qd5 {[%emt 0:01:30]} 17. Qh3 {[%emt 0:01:06]} Be7 {[%emt 0:00:
00]} 18. Kb1 {[%emt 0:02:11]} O-O {[%emt 0:02:08]} 19. Be5 {[%emt 0:06:03]} Ne8
{[%emt 0:07:36]} 20. Rhe1 {[%emt 0:00:56]} f6 {[%emt 0:03:55]} 21. Bg3 {
[%emt 0:03:21]} e5 {[%emt 0:00:36]} 22. f4 {[%emt 0:01:33]} exf4 {[%emt 0:00:
00]} 23. Bxf4 {[%emt 0:08:59]} Bd6 {[%emt 0:00:36]} 24. Bc1 {[%emt 0:02:28]}
Nc7 {[%emt 0:01:21]} 25. Ne3 {[%emt 0:00:25]} Qe6 {[%emt 0:00:30]} 26. Nf5 {
[%emt 0:01:01]} Qd7 {[%emt 0:00:37]} 27. Bf4 {[%emt 0:04:05]} Ne8 {[%emt 0:00:
00]} 28. Rxe8 {[%emt 0:01:40]} Rfxe8 {[%emt 0:00:30]} 29. Nxd6 {[%emt 0:00:29]}
Qxh3 {[%emt 0:00:27]} 30. gxh3 {[%emt 0:00:12]} Re6 {[%emt 0:00:32]} 31. Nc4 {
[%emt 0:03:59]} g5 {[%emt 0:00:27]} 32. Be3 {[%emt 0:00:15]} Rd5 {[%emt 0:00:
00]} 33. Kc2 {[%emt 0:01:33]} Rf5 {[%emt 0:00:26]} 34. Rg1 {[%emt 0:01:20]} h6
{[%emt 0:00:44]} 35. Rg2 {[%emt 0:00:20]} Kf7 {[%emt 0:00:31]} 36. h4 {[%emt 0:
00:00]} Ke7 {[%emt 0:00:29]} 37. Kd2 {[%emt 0:00:37]} a6 {[%emt 0:00:26]} 38.
a4 {[%emt 0:00:31]} Kd7 {[%emt 0:00:35]} 39. a5 {[%emt 0:00:29]} Kc7 {[%emt 0:
00:00]} 40. Bf2 {[%emt 0:03:02]} Kd7 {[%emt 0:00:32]} 41. hxg5 {[%emt 0:34:48]}
fxg5 {[%emt 0:04:04]} 42. h4 {[%emt 0:00:00]} Ref6 {[%emt 0:06:31]} 43. Bg3 {
[%emt 0:00:00]} Re6 {[%emt 0:06:35]} 44. Be1 {[%emt 0:00:00]} Rf1 {[%emt 0:00:
00]} 45. Bf2 {[%emt 0:00:00]} Rf6 {[%emt 0:04:09]} 46. Ke2 {[%emt 0:00:00]} Rc1
{[%emt 0:00:23]} 47. Be3 {[%emt 0:00:00]} Re6 {[%emt 0:01:43]} 48. Kd2 {
[%emt 0:00:00]} Rh1 {[%emt 0:02:36]} 49. hxg5 {[%emt 0:00:00]} hxg5 {[%emt 0:
00:00]} 50. Bxg5 {[%emt 0:00:00]} Kc8 {[%emt 0:00:35]} 51. Bf4 {[%emt 0:00:00]}
Rh7 {[%emt 0:00:22]} 52. Bd6 {[%emt 0:00:00]} Reh6 {[%emt 0:00:48]} 53. Kc2 {
[%emt 0:00:00]} Rh5 {[%emt 0:00:12]} 54. Nb6+ {[%emt 0:00:00]} Kb7 {[%emt 0:00:
00]} 55. Na4 {[%emt 0:00:00]} Rd5 {[%emt 0:00:10]} 56. Bxc5 {[%emt 0:00:00]}
Rdh5 {[%emt 0:00:13]} 57. Bb6 {[%emt 0:00:00]} Rh2 {[%emt 0:00:48]} 58. Nc5+ {
[%emt 0:00:00]} Ka8 {[%emt 0:00:08]} 59. Rxh2 {[%emt 0:00:00]} Rxh2+ {[%emt 0:
00:00]} 60. Kb3 {[%emt 0:00:00]} 1-0

[Event "44th Chess Olympiad Open 2022"]
[Site "Chennai"]
[Date "2022.07.31"]
[Round "3.42"]
[White "Lazov, Toni"]
[Black "De Silva, L M S T.."]
[Result "1/2-1/2"]
[WhiteElo "2374"]
[BlackElo "2212"]
[Annotator "RC"]
[PlyCount "63"]
[EventDate "2022.??.??"]
[TimeControl "60"]

1. e4 {[%emt 0:00:03]} e5 {[%emt 0:00:09]} 2. Nf3 {[%emt 0:00:14]} Nc6 {
[%emt 0:00:08]} 3. Bc4 {[%emt 0:00:10]} Nf6 {[%emt 0:00:15]} 4. d3 {[%emt 0:00:
00]} h6 {[%emt 0:00:45]} 5. O-O {[%emt 0:00:26]} d6 {[%emt 0:00:18]} 6. c3 {
[%emt 0:00:53]} g5 {[%emt 0:02:05]} 7. Nbd2 {[%emt 0:00:44]} g4 {[%emt 0:04:43]
} 8. Nh4 {[%emt 0:11:36]} Nxe4 {[%emt 0:14:20]} 9. Nxe4 {[%emt 0:00:30]} Qxh4 {
[%emt 0:00:30]} 10. d4 {[%emt 0:00:47]} Bg7 {[%emt 0:12:35]} 11. dxe5 {[%emt 0:
00:00]} Bxe5 {[%emt 0:12:53]} 12. g3 {[%emt 0:05:24]} Qh5 {[%emt 0:05:16]} 13.
f4 {[%emt 0:44:21]} Bg7 {[%emt 0:08:18]} 14. Nf2 {[%emt 0:05:58]} O-O {[%emt 0:
00:00]} 15. Be2 {[%emt 0:00:57]} f5 {[%emt 0:03:02]} 16. h3 {[%emt 0:00:14]}
Qg6 {[%emt 0:07:15]} 17. hxg4 {[%emt 0:00:06]} fxg4 {[%emt 0:00:31]} 18. Bxg4 {
[%emt 0:00:17]} Ne7 {[%emt 0:00:52]} 19. Kh2 {[%emt 0:02:36]} Nf5 {[%emt 0:00:
00]} 20. Rg1 {[%emt 0:01:01]} Be6 {[%emt 0:03:35]} 21. Bd2 {[%emt 0:02:59]} Qf6
{[%emt 0:01:14]} 22. Qf3 {[%emt 0:00:38]} Rae8 {[%emt 0:01:36]} 23. Rae1 {
[%emt 0:03:57]} c6 {[%emt 0:01:06]} 24. Bh5 {[%emt 0:02:12]} Bf7 {[%emt 0:00:
00]} 25. Ne4 {[%emt 0:03:13]} Qd8 {[%emt 0:02:30]} 26. Bxf7+ {[%emt 0:00:02]}
Rxf7 {[%emt 0:00:22]} 27. Qh5 {[%emt 0:00:20]} d5 {[%emt 0:01:35]} 28. Nc5 {
[%emt 0:02:23]} b6 {[%emt 0:01:43]} 29. Rxe8+ {[%emt 0:01:06]} Qxe8 {[%emt 0:
00:00]} 30. Re1 {[%emt 0:00:20]} Qd8 {[%emt 0:00:32]} 31. Ne6 {[%emt 0:00:25]}
Qf6 {[%emt 0:00:21]} 32. g4 {[%emt 0:00:52]} 1/2-1/2